bitfinex/quotes_ETHUSD_20250415
["timestamp","ask_amount","ask_price","bid_price","bid_amount"]
[1744710655872,6.87553,1644.2,1643.8,6.08335]
[1744710655873,12.16507,1644.1,1643.8,6.08335]
[1744710656095,11.39074,1644.0,1643.7,6.08373]
[1744710656271,0.832,1643.9,1643.7,12.16746]
[1744710657109,0.832,1643.9,1643.7,6.08373]
[1744710657321,0.832,1643.9,1643.6,6.08414]
[1744710657526,6.91522,1643.9,1643.6,12.16828]
[1744710657799,0.832,1643.9,1643.7,6.08382]
[1744710658801,6.9152,1643.9,1643.6,6.08414]
[1744710659208,6.9152,1643.9,1643.6,6.08406]
[1744710659819,2.662601,1643.9,1643.6,6.08406]
[1744710660005,2.662601,1643.9,1643.5,6.08452]
[1744710660006,6.08362,1643.8,1643.5,12.16895]
[1744710660172,6.08362,1643.8,1643.5,6.08443]
[1744710660514,2.662601,1643.9,1643.7,6.08372]
[1744710660716,2.662601,1643.9,1643.7,6.08369]
[1744710660883,0.832,1643.9,1643.8,6.08346]
[1744710661200,0.832,1643.9,1643.7,12.1674]
[1744710661406,12.16497,1644.1,1643.8,6.08346]
[1744710661407,0.7672,1644.1,1643.8,6.08346]
[1744710661573,5.309,1644.0,1643.9,6.08297]
[1744710662081,0.7672,1644.1,1644.0,6.08272]
[1744710662423,6.0762,1644.1,1643.9,12.16592]
[1744710663904,6.0762,1644.1,1643.9,12.16594]
[1744710664102,6.0762,1644.1,1644.0,6.08272]
[1744710664282,6.0762,1644.1,1643.9,12.16592]
[1744710664484,6.08282,1644.0,1643.7,6.08366]
[1744710665304,12.16573,1644.0,1643.7,6.08366]
[1744710665612,6.68382,1644.1,1643.6,6.08416]
[1744710665613,0.8077,1643.8,1643.6,6.08416]
[1744710665771,5.309,1643.7,1643.6,6.08416]
[1744710667717,5.309,1643.7,1643.6,6.23461167]
[1744710670511,6.1168,1643.7,1643.6,0.15045167]
[1744710673613,6.1168,1643.7,1643.6,6.23465167]
[1744710673808,6.1168,1643.7,1643.6,0.15045167]
[1744710674413,5.309,1643.7,1643.6,0.15045167]
[1744710674617,5.309,1643.7,1643.6,6.23465167]
[1744710675020,5.309,1643.7,1643.6,0.15045167]
[1744710675983,5.309,1643.7,1643.6,6.23465167]
[1744710676314,5.309,1643.7,1643.6,0.15045167]
[1744710676517,5.309,1643.7,1643.5,12.16893]
[1744710676719,5.309,1643.7,1643.6,0.150876]
[1744710677096,6.0836,1643.8,1643.6,0.150876]
[1744710677487,12.98127,1643.9,1643.6,6.234986]
[1744710677731,6.0835,1643.8,1643.6,0.150876]
[1744710678350,12.16714,1643.8,1643.6,0.150876]
[1744710678713,14.32409841,1643.9,1643.6,6.235056]
[1744710680210,6.08354,1643.8,1643.6,0.150876]
[1744710680742,6.84733,1643.7,1643.6,0.150876]
[1744710680951,0.7635,1643.7,1643.3,6.08531]
[1744710681150,0.7635,1643.7,1643.6,0.150876]
[1744710681441,0.7635,1643.7,1643.5,6.08441]
[1744710681634,0.7635,1643.7,1643.6,0.150876]
[1744710681835,0.7635,1643.7,1643.6,6.235076]
[1744710682347,0.7635,1643.7,1643.6,0.150876]
[1744710683461,6.84733,1643.7,1643.6,0.150876]
[1744710683639,7.535941,1643.7,1643.6,0.150876]
[1744710683994,0.7674,1643.3,1643.1,6.08605]
[1744710684963,6.08578,1643.2,1642.8,6.08715]
[1744710685170,6.08619,1643.1,1642.8,6.08702]
[1744710685400,0.7674,1643.3,1642.7,0.8171]
[1744710685562,0.7674,1643.3,1643.0,12.17252]
[1744710685767,0.7674,1643.3,1642.8,6.08716]
[1744710685966,6.85271,1643.3,1642.9,6.08643]
[1744710686284,6.85271,1643.3,1643.0,6.0864]
[1744710686581,0.7674,1643.3,1643.0,6.08632]
[1744710686751,0.7674,1643.3,1643.1,6.08597]
[1744710686946,0.7674,1643.3,1643.0,6.08634]
[1744710687151,6.85272,1643.3,1643.0,12.17268]
[1744710687383,6.85272,1643.3,1643.0,12.17264]
[1744710687583,6.85272,1643.3,1643.0,6.0863]
[1744710687883,6.85272,1643.3,1643.0,12.17259]
[1744710688186,0.8116,1643.5,1643.1,6.08588]
[1744710688360,6.89621,1643.5,1643.2,6.08553]
[1744710688566,6.89621,1643.5,1643.2,12.17109]
[1744710688883,6.89621,1643.5,1643.2,6.08553]
[1744710689084,6.89621,1643.5,1643.2,12.17111]
[1744710689293,6.89621,1643.5,1642.8,6.08706]
[1744710689294,0.8116,1643.5,1643.3,6.0852]
[1744710689451,0.8116,1643.5,1643.4,6.08494]
[1744710689651,0.8116,1643.5,1643.3,6.08516]
[1744710689981,0.8116,1643.5,1643.3,12.17032]
[1744710690190,0.8116,1643.5,1643.2,6.0856]
[1744710690388,6.89618,1643.5,1643.2,6.0856]
[1744710690554,6.89618,1643.5,1643.2,12.17114]
[1744710690755,6.89618,1643.5,1643.2,12.17111]
[1744710691182,6.89618,1643.5,1643.3,6.08509]
[1744710691183,0.8116,1643.5,1643.3,6.08509]
[1744710691352,0.8116,1643.5,1643.2,6.08558]
[1744710691552,7.542491,1643.7,1643.3,6.08531]
[1744710691786,13.626591,1643.7,1643.3,6.08531]
[1744710691987,13.626591,1643.7,1643.3,12.17062]
[1744710692568,0.7739,1643.7,1643.5,6.08423]
[1744710692886,0.7739,1643.7,1643.4,6.08485]
[1744710693080,6.85789,1643.7,1643.4,6.08485]
[1744710693453,6.85789,1643.7,1643.4,6.08484]
[1744710693701,6.85789,1643.7,1643.4,12.16966]
[1744710694184,0.7739,1643.7,1643.5,6.08455]
[1744710695079,6.84977,1643.8,1643.5,6.08455]
[1744710695293,6.84977,1643.8,1643.5,6.08446]
[1744710695967,6.84977,1643.8,1643.5,12.16891]
[1744710696363,6.84977,1643.8,1643.5,12.1689]
[1744710698465,0.7662,1643.8,1643.6,6.08409]
[1744710698868,6.87738,1644.0,1643.7,6.08356]
[1744710699163,12.96035,1644.0,1643.7,6.08356]
[1744710700519,6.87738,1644.0,1643.7,6.08356]
[1744710700684,12.96035,1644.0,1643.7,6.08356]
[1744710700884,14.317147,1644.0,1643.7,6.08356]
[1744710701926,8.234177,1644.0,1643.7,12.16727]
[1744710702224,14.317247,1644.0,1643.7,6.08356]
[1744710702830,0.60762,1644.1,1643.6,0.8194]
[1744710703133,0.7868,1644.2,1644.1,6.08235]
[1744710703432,13.01356,1644.4,1644.1,6.08235]
[1744710703819,0.8509,1644.4,1644.1,6.08235]
[1744710704119,0.05,1644.4,1644.3,6.08161]
[1744710706623,0.05,1644.4,1644.3,6.85201]
[1744710707421,0.05,1644.4,1644.3,6.91282344]
[1744710707626,0.05,1644.4,1644.3,6.85201]
[1744710712860,0.05,1644.4,1644.3,6.91282186]
[1744710714112,0.05,1644.4,1644.3,6.85201]
[1744710716923,0.05,1644.4,1644.3,6.91281974]
[1744710720372,0.05,1644.4,1644.3,6.85201]
[1744710721258,0.05,1644.4,1644.3,6.08161]
[1744710723266,0.7734,1644.3,1643.9,0.7713]
[1744710723549,6.856,1644.1,1643.8,6.08335]
[1744710723749,6.08296,1644.0,1643.6,6.08408]
[1744710724068,12.16637,1643.9,1643.6,6.08407]
[1744710724362,12.16637,1643.9,1643.6,6.08405]
[1744710724363,6.08312,1643.9,1643.6,6.08405]
[1744710725021,6.08312,1643.9,1643.6,12.16813]
[1744710725216,12.96497,1644.0,1643.6,12.16813]
[1744710725480,5.256,1643.8,1643.6,12.16813]
[1744710725683,5.256,1643.8,1643.6,6.08405]
[1744710725867,0.8079,1643.7,1643.6,6.08405]
[1744710727778,6.0639,1643.7,1643.6,6.08405]
[1744710728342,5.256,1643.7,1643.6,6.08405]
[1744710729454,5.256,1643.7,1643.5,12.16888]
[1744710729648,5.256,1643.7,1643.5,6.08443]
[1744710729853,5.256,1643.7,1643.3,12.17022]
[1744710730057,11.34003,1643.7,1643.3,12.17022]
[1744710730242,0.7894,1643.5,1643.3,12.17024]
[1744710730648,0.7894,1643.5,1643.3,12.17023]
[1744710731280,0.7894,1643.5,1643.4,6.08494]
[1744710731460,0.8146,1643.6,1643.4,12.16988]
[1744710731662,0.8146,1643.8,1643.7,6.08383]
[1744710731979,6.0716,1643.8,1643.7,6.08383]
[1744710732182,5.257,1643.8,1643.7,6.08383]
[1744710732479,6.85932,1644.0,1643.7,6.08383]
[1744710732688,5.257,1643.9,1643.7,12.16766]
[1744710733185,5.257,1643.9,1643.7,6.08383]
[1744710733481,5.257,1643.9,1643.7,12.16754]
[1744710733673,5.257,1643.9,1643.8,6.08346]
[1744710734982,5.2035,1643.9,1643.8,6.08346]
[1744710735190,5.2035,1643.9,1643.7,12.16739]
[1744710735481,5.2035,1643.9,1643.8,6.08346]
[1744710736695,5.2035,1643.9,1643.7,6.08368]
[1744710736882,5.2035,1643.9,1643.4,6.08461]
[1744710736883,6.052,1643.8,1643.4,6.08461]
[1744710737049,6.08407,1643.7,1643.4,6.08461]
[1744710737250,6.084,1643.7,1643.4,6.08461]
[1744710737789,6.084,1643.7,1643.4,12.16945]
[1744710738383,6.084,1643.7,1643.4,12.16942]
[1744710738553,7.905956,1643.7,1643.4,12.16942]
[1744710739381,7.905956,1643.7,1643.4,12.16943]
[1744710739587,6.88174,1643.6,1643.3,12.17027]
[1744710739776,0.7975,1643.6,1643.4,6.08489]
[1744710739977,0.7975,1643.6,1643.4,6.08485]
[1744710740172,12.13808,1643.8,1643.5,6.08447]
[1744710740374,7.328109,1643.8,1643.6,6.08417]
[1744710740602,7.328109,1643.8,1643.5,6.08447]
[1744710740603,13.411869,1643.8,1643.5,6.08447]
[1744710740916,5.258,1643.7,1643.5,6.08447]
[1744710741313,5.258,1643.6,1643.5,6.08445]
[1744710741784,0.7975,1643.8,1643.6,6.08404]
[1744710741984,5.258,1643.7,1643.6,6.08404]
[1744710745020,5.258,1643.7,1643.6,6.0842]
[1744710746095,5.258,1643.7,1643.5,12.16888]
[1744710746295,11.34194,1643.7,1643.4,6.08484]
[1744710746823,11.34194,1643.7,1643.4,12.16968]
[1744710747533,13.164242,1643.7,1643.4,6.08484]
[1744710749033,5.258,1643.7,1643.3,6.08531]
[1744710749192,5.258,1643.7,1643.5,6.08424]
[1744710749505,5.258,1643.7,1643.6,6.0842]
[1744710750424,5.258,1643.7,1643.5,12.16863]
[1744710750625,5.258,1643.7,1643.5,6.08424]
[1744710750803,11.34185,1643.7,1643.4,6.08485]
[1744710751012,17.42593,1643.7,1643.4,6.08485]
[1744710752445,11.34185,1643.7,1643.4,12.16969]
[1744710753023,17.42586,1643.7,1643.4,6.08484]
[1744710753248,6.08468,1643.5,1643.0,0.7566]
[1744710753539,0.796,1643.6,1643.0,6.08632]
[1744710753540,6.87581,1643.3,1643.0,6.08632]
[1744710753698,5.239,1643.2,1643.0,6.08631]
[1744710753887,5.239,1643.2,1643.0,12.1726]
[1744710754331,5.239,1643.2,1643.0,6.08629]
[1744710754517,5.239,1643.2,1643.0,12.17259]
[1744710754906,5.239,1643.2,1642.9,6.08674]
[1744710755231,6.08615,1643.1,1642.8,12.17428]
[1744710755891,0.8235,1643.0,1642.8,6.08714]
[1744710756331,6.0001,1643.2,1642.7,3.74666965]
[1744710756493,6.0001,1643.2,1643.0,6.0863]
[1744710757193,6.0001,1643.2,1643.0,12.17261]
[1744710757630,5.239,1643.4,1643.2,6.08568]
[1744710760831,5.239,1643.4,1643.1,12.93952]
[1744710761895,11.32406,1643.4,1643.1,6.08596]
[1744710762232,12.532576,1643.4,1643.1,6.08596]
[1744710763126,12.532576,1643.4,1643.1,12.17189]
[1744710763437,11.32406,1643.4,1643.1,12.17189]
[1744710766844,11.32406,1643.4,1643.1,6.08593]
[1744710766845,17.40924,1643.4,1643.1,6.08593]
[1744710767041,11.32406,1643.4,1643.1,6.08593]
[1744710767340,11.32406,1643.4,1643.1,12.17186]
[1744710767545,11.32406,1643.4,1643.1,6.08593]
[1744710768044,11.32406,1643.4,1643.1,12.17187]
[1744710775752,11.32406,1643.4,1643.1,6.08593]
[1744710775960,6.08532,1643.3,1643.0,12.17266]
[1744710776253,6.08532,1643.3,1642.9,0.7915]
[1744710776254,6.08579,1643.2,1642.9,6.08671]
[1744710776644,12.17164,1643.2,1642.9,6.08671]
[1744710776821,6.08659,1643.0,1642.7,6.08743]
[1744710777025,0.828,1642.8,1642.6,6.08788]
[1744710777227,6.9152,1642.8,1642.5,6.08817]
[1744710778072,6.9152,1642.8,1642.5,12.17635]
[1744710778246,6.9152,1642.8,1642.5,12.17632]
[1744710778637,0.828,1642.8,1642.6,6.08788]
[1744710779379,6.91517,1642.8,1642.5,12.1763]
[1744710779565,13.00259,1642.8,1642.5,6.08815]
[1744710780380,12.17551,1642.7,1642.4,1.94413373]
[1744710780547,6.08773,1642.7,1642.4,8.03272373]
[1744710780939,8.56402072,1642.8,1642.4,8.03272373]
[1744710780940,8.56402072,1642.8,1642.5,6.08818]
[1744710781180,2.47682072,1642.8,1642.5,12.17635]
[1744710781385,0.828,1642.8,1642.6,12.17546]
[1744710781535,0.828,1642.8,1642.6,6.08768]
[1744710782183,6.91517,1642.8,1642.5,6.0882]
[1744710782367,6.91517,1642.8,1642.5,12.17632]
[1744710782678,6.91517,1642.8,1642.5,6.08816]
[1744710782867,6.91517,1642.8,1642.5,12.17631]
[1744710783271,0.828,1642.8,1642.6,6.08784]
[1744710783569,0.7742,1643.0,1642.8,6.08704]
[1744710783768,5.199,1642.9,1642.7,12.17484]
[1744710784540,5.199,1642.9,1642.8,6.08716]
[1744710784739,5.199,1642.9,1642.7,6.08742]
[1744710784940,11.28581,1642.9,1642.6,12.17556]
[1744710785761,5.199,1642.9,1642.6,6.08777]
[1744710785965,5.199,1642.9,1642.7,6.0875]
[1744710786365,5.199,1642.9,1642.7,6.08742]
[1744710786539,5.199,1642.9,1642.8,6.08716]
[1744710786875,5.199,1642.9,1642.8,6.90866]
[1744710787586,54.30635,1643.2,1642.9,12.173]
[1744710787745,5.199,1643.1,1642.9,12.173]
[1744710787946,5.199,1643.1,1642.9,6.0865]
[1744710788139,5.199,1643.4,1643.1,6.08605]
[1744710788347,5.199,1643.4,1643.2,0.608605]
[1744710788553,5.199,1643.4,1643.2,6.2069476]
[1744710788779,5.199,1643.4,1643.3,6.08531]
[1744710789079,5.199,1643.4,1643.2,12.17107]
[1744710789290,5.199,1643.4,1643.3,0.1214376]
[1744710790349,5.198,1643.6,1643.4,6.08481]
[1744710790599,5.198,1643.6,1643.5,0.1188063]
[1744710790926,5.198,1643.6,1643.5,6.08457]
[1744710791231,5.198,1643.6,1643.5,6.2033763]
[1744710792886,8.198,1643.6,1643.5,6.2033763]
[1744710793093,8.198,1643.6,1643.5,0.1188063]
[1744710793481,8.198,1643.6,1643.5,6.2033763]
[1744710794424,5.198,1643.6,1643.5,6.2033763]
[1744710795620,5.198,1643.6,1643.5,0.1188063]
[1744710795819,5.198,1643.6,1643.4,6.08479]
[1744710796427,5.198,1643.6,1643.5,6.08457]
[1744710798172,5.198,1643.6,1643.4,6.08478]
[1744710798535,5.198,1643.6,1643.4,12.16962]
[1744710800371,12.56951,1643.6,1643.2,12.17111]
[1744710800607,12.04971,1643.6,1643.2,12.17111]
[1744710801071,12.04971,1643.6,1643.2,6.08555]
[1744710801265,12.04971,1643.6,1643.2,12.17108]
[1744710801775,18.1342,1643.6,1643.2,6.08553]
[1744710802065,5.197,1643.8,1643.3,3.78836965]
[1744710802264,5.197,1643.8,1643.7,6.08383]
[1744710806961,5.197,1643.8,1643.7,6.14466329]
[1744710807152,5.197,1643.8,1643.7,6.08383]
[1744710807490,5.197,1643.8,1643.7,9.92373072]
[1744710807691,6.08162,1644.3,1644.0,6.08266]
[1744710807855,5.192,1644.1,1644.0,6.08266]
[1744710808592,5.242,1644.4,1644.3,6.08161]
[1744710808792,5.242,1644.4,1644.0,0.7521]
[1744710808951,6.89686,1644.3,1643.9,6.08293]
[1744710809150,12.9787,1644.3,1643.9,6.08293]
[1744710809373,12.9787,1644.3,1643.8,6.83547]
[1744710809374,0.815,1644.3,1644.0,6.08263]
[1744710809588,0.815,1644.3,1644.0,12.16522]
[1744710809784,0.815,1644.3,1644.1,6.08201]
[1744710809991,11.32335,1644.4,1644.1,6.08201]
[1744710810290,11.32335,1644.4,1644.0,6.08264]
[1744710810478,5.192,1644.3,1644.0,12.16522]
[1744710810979,5.192,1644.3,1644.1,6.08225]
[1744710811186,5.192,1644.3,1644.0,12.1653]
[1744710811695,0.8272,1644.2,1643.9,6.08298]
[1744710811897,12.99146,1644.2,1643.8,6.0833]
[1744710812052,6.90932,1644.2,1643.8,12.16669]
[1744710812251,6.90932,1644.2,1643.8,6.0833]
[1744710812252,14.66797035,1644.2,1643.8,6.0833]
[1744710812453,8.58580035,1644.2,1643.8,12.16665]
[1744710812674,14.66795035,1644.2,1643.8,6.0833]
[1744710812980,14.66795035,1644.2,1643.8,12.16663]
[1744710813172,8.58580035,1644.2,1643.8,12.16663]
[1744710813368,14.66795035,1644.2,1643.8,12.16663]
[1744710814390,14.66796035,1644.2,1643.8,12.16663]
[1744710814562,8.58580035,1644.2,1643.8,12.16663]
[1744710814762,14.66796035,1644.2,1643.8,12.16663]
[1744710815616,14.66796035,1644.2,1643.8,6.0833]
[1744710815751,7.54914604,1644.1,1643.8,6.0833]
[1744710815951,7.54914604,1644.1,1643.8,12.16664]
[1744710816887,7.54914604,1644.1,1643.8,6.0833]
[1744710817302,7.54914604,1644.1,1643.8,12.16666]
[1744710817504,7.54914604,1644.1,1643.8,6.0833]
[1744710818009,1.46679604,1644.1,1643.8,6.0833]
[1744710818209,5.192,1644.3,1643.9,0.797]
[1744710818502,5.192,1644.3,1644.2,6.08198]
[1744710820801,5.192,1644.3,1644.1,6.08206]
[1744710821169,0.05,1644.4,1644.3,6.08161]
[1744710821363,1e-05,1644.4,1644.3,9.88338628]
[1744710821613,1e-05,1644.4,1644.3,13.37257965]
[1744710822214,1e-05,1644.4,1644.3,13.82401478]
[1744710822509,0.4034326,1644.7,1644.6,9.8411]
[1744710822867,0.4034326,1644.7,1644.6,6.8411]
[1744710824109,0.4034326,1644.7,1644.6,6.90189932]
[1744710824321,0.4034326,1644.7,1644.6,9.90189932]
[1744710824482,0.4034326,1644.7,1644.6,9.8411]
[1744710825620,0.4034326,1644.7,1644.6,6.8411]
[1744710830649,0.4034326,1644.7,1644.6,9.0805]
[1744710831596,5.5924326,1644.7,1644.4,12.16233]
[1744710831796,0.8056,1644.6,1644.4,6.08114]
[1744710832027,0.8056,1644.6,1644.4,12.16224]
[1744710833648,0.8056,1644.6,1644.5,6.08087]
[1744710834611,5.5924326,1644.7,1644.6,6.0805]
[1744710834955,5.5924326,1644.7,1644.6,6.8904]
[1744710835957,5.5924326,1644.7,1644.6,6.95119787]
[1744710836356,5.5924326,1644.7,1644.6,9.91466752]
[1744710836739,0.4034326,1644.7,1644.6,9.91466752]
[1744710836924,0.4034326,1644.7,1644.6,9.85386965]
[1744710837334,0.4034326,1644.7,1644.6,9.91466075]
[1744710837547,0.4034326,1644.7,1644.6,9.85386965]
[1744710839058,0.4034326,1644.7,1644.6,12.91466079]
[1744710839351,0.4034326,1644.7,1644.6,12.85386965]
[1744710841031,0.4034326,1644.7,1644.6,9.8904]
[1744710841229,0.4034326,1644.7,1644.6,6.0805]
[1744710842044,0.4034326,1644.7,1644.5,12.16143]
[1744710842245,0.4034326,1644.7,1644.6,6.0805]
[1744710843520,0.4034326,1644.7,1644.6,6.1412974]
[1744710844453,2.6e-06,1644.7,1644.6,13.36366965]
[1744710847386,2.6e-06,1644.7,1644.6,12.81366965]
[1744710849283,2.6e-06,1644.7,1644.6,9.0805]
[1744710849986,2.6e-06,1644.7,1644.6,6.0805]
[1744710851948,2.6e-06,1644.7,1644.5,6.08069]
[1744710852179,2.6e-06,1644.7,1644.5,12.16145]
[1744710852374,2.6e-06,1644.7,1644.5,12.16144]
[1744710852589,2.6e-06,1644.7,1644.6,6.0805]
[1744710852755,2.6e-06,1644.7,1644.5,12.16144]
[1744710853776,2.6e-06,1644.7,1644.6,6.0805]
[1744710855698,2.6e-06,1644.7,1644.6,6.14129736]
[1744710855878,2.6e-06,1644.7,1644.6,6.0805]
[1744710856392,2.6e-06,1644.7,1644.6,9.10476699]
[1744710858368,0.8162026,1644.7,1644.5,6.08069]
[1744710858585,6.0412026,1644.7,1644.6,6.0805]
[1744710858895,5.2250026,1644.7,1644.6,6.0805]
[1744710862609,5.2250026,1644.7,1644.5,12.16138]
[1744710863109,5.2250026,1644.7,1644.5,12.16145]
[1744710864117,5.2250026,1644.7,1644.6,6.0805]
[1744710865135,5.2250026,1644.7,1644.5,12.16145]
[1744710865627,5.2250026,1644.7,1644.6,6.0805]
[1744710866299,5.2250026,1644.7,1644.6,6.9022]
[1744710867914,2.6e-06,1644.7,1644.6,6.96299673]
[1744710868230,2.6e-06,1644.7,1644.6,7.51299673]
[1744710868422,2.6e-06,1644.7,1644.6,7.4522]
[1744710868922,2.6e-06,1644.7,1644.6,10.4522]
[1744710869224,2.6e-06,1644.7,1644.6,10.5129831]
[1744710870090,2.6e-06,1644.7,1644.6,10.4522]
[1744710872132,2.6e-06,1644.7,1644.6,9.9022]
[1744710872440,2.6e-06,1644.7,1644.6,9.14128829]
[1744710873607,2.6e-06,1644.7,1644.6,9.0805]
[1744710875142,2.6e-06,1644.7,1644.6,9.14129198]
[1744710875902,2.6e-06,1644.7,1644.6,9.0805]
[1744710876413,2.6e-06,1644.7,1644.6,9.14129194]
[1744710879208,2.6e-06,1644.7,1644.6,9.0805]
[1744710879409,2.6e-06,1644.7,1644.6,9.14129395]
[1744710882741,2.6e-06,1644.7,1644.6,9.0805]
[1744710883036,2.6e-06,1644.7,1644.6,6.0805]
[1744710883243,0.7780026,1644.7,1644.5,6.08068]
[1744710883725,0.7780026,1644.7,1644.4,6.08121]
[1744710883726,7.54404986,1644.7,1644.4,6.08121]
[1744710884043,0.7780026,1644.7,1644.5,6.14166621]
[1744710884239,0.7780026,1644.7,1644.6,6.0805]
[1744710884405,0.7780026,1644.7,1644.5,6.14166621]
[1744710884406,0.7780026,1644.7,1644.5,12.22243621]
[1744710884607,0.7780026,1644.7,1644.5,6.14157621]
[1744710885455,0.7780026,1644.7,1644.5,12.22234621]
[1744710886155,0.7780026,1644.7,1644.6,6.0805]
[1744710887212,0.7780026,1644.7,1644.5,12.16146]
[1744710888619,0.7780026,1644.7,1644.6,6.0805]
[1744710893549,2.6e-06,1644.7,1644.6,6.0805]
[1744710893739,2.6e-06,1644.7,1644.6,6.14129807]
[1744710895011,2.6e-06,1644.7,1644.6,6.0805]
[1744710901023,2.6e-06,1644.7,1644.6,9.14129204]
[1744710902240,2.6e-06,1644.7,1644.6,9.0805]
[1744710903863,2.6e-06,1644.7,1644.5,15.12483965]
[1744710903864,0.7915026,1644.7,1644.5,12.16146]
[1744710904049,0.7915026,1644.7,1644.5,6.08068]
[1744710904363,0.7915026,1644.7,1644.5,12.16145]
[1744710904858,0.7915026,1644.7,1644.6,6.0805]
[1744710907829,2.6e-06,1644.7,1644.6,12.87727093]
[1744710908030,2.6e-06,1644.7,1644.6,12.81646965]
[1744710914377,2.6e-06,1644.7,1644.6,13.36646965]
[1744710927395,2.6e-06,1644.7,1644.6,11.70324951]
[1744710927596,2.6e-06,1644.7,1644.6,11.76403225]
[1744710928104,2.6e-06,1644.7,1644.6,10.93074951]
[1744710928601,2.6e-06,1644.7,1644.6,9.6305]
[1744710928766,2.6e-06,1644.7,1644.6,9.0805]
[1744710930987,2.6e-06,1644.7,1644.6,10.44154114]
[1744710931185,2.6e-06,1644.7,1644.6,12.0998395]
[1744710931375,2.6e-06,1644.7,1644.6,13.4439395]
[1744710931576,2.6e-06,1644.7,1644.6,13.38314787]
[1744710933777,0.7782,1645.2,1645.1,6.07865]
[1744710933778,5.9452,1645.2,1645.1,6.07865]
[1744710934570,0.7609,1645.1,1645.0,6.07884]
[1744710934808,0.7609,1645.1,1645.0,6.1396231]
[1744710936216,5.167,1645.2,1645.0,6.1396231]
[1744710936217,5.167,1645.2,1645.1,6.07865]
[1744710936416,5.167,1645.2,1645.0,12.03738787]
[1744710936417,5.9263,1645.2,1645.0,9.07884]
[1744710936726,0.7884,1645.1,1644.9,6.07933]
[1744710937204,0.7884,1645.1,1644.9,6.07927]
[1744710937507,0.7884,1645.1,1645.0,6.13980323]
[1744710939109,5.9268,1645.2,1645.1,6.07865]
[1744710942305,5.167,1645.2,1645.1,6.07865]
[1744710950409,5.167,1645.2,1645.1,6.13942876]
[1744710950613,5.167,1645.2,1645.1,6.07865]
[1744710951152,0.8665,1645.4,1645.2,12.15604]
[1744710951354,6.0325,1645.4,1645.3,6.07791]
[1744710958851,6.0325,1645.4,1645.2,12.15607]
[1744710959846,6.0325,1645.4,1645.3,6.07791]
[1744710962156,6.0325,1645.4,1645.2,12.15608]
[1744710962761,6.0325,1645.4,1645.3,6.07791]
[1744710965455,6.0325,1645.4,1645.2,12.15607]
[1744710965761,6.0325,1645.4,1645.3,6.07791]
[1744710966961,6.87797,1645.3,1644.9,6.07928]
[1744710967461,6.87855,1645.1,1644.8,6.07965]
[1744710967661,5.9389,1645.0,1644.8,12.15931]
[1744710967826,5.9389,1645.0,1644.9,6.07939]
[1744710968759,5.9389,1645.0,1644.8,6.07965]
[1744710969257,5.9389,1645.0,1644.8,12.15929]
[1744710969850,7.140661,1645.0,1644.7,6.08005]
[1744710970048,0.8295,1644.9,1644.5,6.08064]
[1744710970251,6.0799,1644.8,1644.5,6.08064]
[1744710970455,6.90965,1644.7,1644.3,12.16304]
[1744710970639,12.99014,1644.7,1644.3,12.16304]
[1744710970991,5.14,1644.6,1644.4,6.08123]
[1744710971158,5.14,1644.6,1644.4,6.0811]
[1744710971536,5.14,1644.6,1644.5,6.08087]
[1744710975585,5.14,1644.6,1644.4,15.12113888]
[1744710976284,5.14,1644.6,1644.5,6.08087]
[1744710979794,0.7848,1645.0,1644.8,6.0796]
[1744710980003,5.141,1644.9,1644.7,6.07992]
[1744710982299,5.141,1644.9,1644.5,12.16136]
[1744710982300,6.86817,1644.8,1644.5,12.16136]
[1744710982498,6.86817,1644.8,1644.5,12.16134]
[1744710982708,6.86817,1644.8,1644.5,6.08059]
[1744710983766,6.86817,1644.8,1644.5,12.16136]
[1744710983995,0.7884,1644.8,1644.5,12.16136]
[1744710984407,0.7884,1644.8,1644.6,6.08041]
[1744710984595,7.730407,1644.9,1644.7,6.08007]
[1744710984814,7.730407,1644.9,1644.7,6.08009]
[1744710984991,5.922,1644.9,1644.7,6.08001]
[1744710985315,5.141,1644.9,1644.8,6.07976]
[1744710988540,5.141,1644.9,1644.7,6.07995]
[1744710988696,0.8212,1644.8,1644.7,6.07995]
[1744710989913,5.141,1644.9,1644.7,6.07995]
[1744710990203,5.141,1644.9,1644.8,6.07976]
[1744710990805,5.141,1644.9,1644.7,13.06381889]
[1744710991010,5.141,1644.9,1644.7,12.15993]
[1744710991689,5.141,1644.9,1644.7,6.07995]
[1744710992225,5.141,1644.9,1644.6,6.08043]
[1744710992428,11.22065,1644.9,1644.6,6.08043]
[1744710992628,5.141,1644.9,1644.7,12.16006]
[1744710992830,5.141,1644.9,1644.8,6.07976]
[1744710998437,5.141,1644.9,1644.8,6.14055071]
[1744710999020,5.141,1644.9,1644.8,6.07976]
[1744710999701,5.141,1644.9,1644.8,9.09948961]
[1744710999942,5.9635,1645.2,1645.0,6.07868]
[1744711000302,5.9635,1645.2,1645.1,6.07865]
[1744711000709,5.141,1645.2,1645.1,6.07865]
[1744711003013,0.8135,1645.4,1645.2,6.07804]
[1744711003236,0.8135,1645.4,1645.3,6.07791]
[1744711004339,0.8135,1645.4,1645.2,6.07804]
[1744711004538,0.8135,1645.4,1645.2,12.15623]
[1744711005232,0.8135,1645.4,1645.2,6.07804]
[1744711005413,0.8135,1645.4,1645.1,12.15706]
[1744711005735,0.8135,1645.4,1645.2,6.07824]
[1744711006038,0.8135,1645.4,1645.2,12.15648]
[1744711006636,0.8135,1645.4,1645.2,12.15641]
[1744711007354,0.8135,1645.4,1645.2,12.15636]